[Event "Titled Tuesday Blitz November 14 Late 2023"]
[White "campochess"]
[Black "Burke, Paul"]
[BlackFideId "2605767"]
[WhiteElo "2176"]
[BlackElo "1854"]
[Result "1-0"]
[Round "10"]
[TimeControl "180+1"]
[Date "2023.11.14"]
[WhiteClock "0:01:04"]
[BlackClock "0:00:00"]
[Board "96"]

1. e4 {[%clk 0:02:59]}  e5 {[%clk 0:02:58]} 2. Bc4 {[%clk 0:02:57]}  Nc6 {[%clk 0:02:58]} 3. c3 {[%clk 0:02:57]}  Be7 {[%clk 0:02:58]} 4. Qh5 {[%clk 0:02:54]}  g6 {[%clk 0:02:54]} 5. Qe2 {[%clk 0:02:53]}  d6 {[%clk 0:02:50]} 6. a4 {[%clk 0:02:53]}  Be6 {[%clk 0:02:43]} 7. Na3 {[%clk 0:02:51]}  d5 {[%clk 0:02:38]} 8. exd5 {[%clk 0:02:49]}  Bxd5 {[%clk 0:02:38]} 9. Nf3 {[%clk 0:02:49]}  e4 {[%clk 0:02:21]} 10. Nd4 {[%clk 0:02:48]}  Nxd4 {[%clk 0:02:20]} 11. cxd4 {[%clk 0:02:47]}  c6 {[%clk 0:02:11]} 12. O-O {[%clk 0:02:45]}  Bxa3 {[%clk 0:02:03]} 13. Rxa3 {[%clk 0:02:44]}  Ne7 {[%clk 0:01:57]} 14. d3 {[%clk 0:02:43]}  Bxc4 {[%clk 0:01:50]} 15. dxc4 {[%clk 0:02:42]}  Qxd4 {[%clk 0:01:49]} 16. Be3 {[%clk 0:02:40]}  Qg7 {[%clk 0:01:37]} 17. Bc5 {[%clk 0:02:36]}  f5 {[%clk 0:01:32]} 18. Rb3 {[%clk 0:02:31]}  b6 {[%clk 0:01:27]} 19. Bd6 {[%clk 0:02:30]}  O-O {[%clk 0:01:10]} 20. Rh3 {[%clk 0:02:30]}  Rad8 {[%clk 0:01:04]} 21. c5 {[%clk 0:02:29]}  Rfe8 {[%clk 0:01:00]} 22. Bxe7 {[%clk 0:02:18]}  Rxe7 {[%clk 0:00:59]} 23. cxb6 {[%clk 0:02:18]}  axb6 {[%clk 0:00:58]} 24. Qc4+ {[%clk 0:02:17]}  Qf7 {[%clk 0:00:49]} 25. Qxc6 {[%clk 0:02:17]}  Qe6 {[%clk 0:00:36]} 26. Qb5 {[%clk 0:02:05]}  Red7 {[%clk 0:00:29]} 27. Re3 {[%clk 0:02:02]}  Qd6 {[%clk 0:00:27]} 28. g3 {[%clk 0:01:58]}  Qc5 {[%clk 0:00:27]} 29. Qb3+ {[%clk 0:01:57]}  Kg7 {[%clk 0:00:25]} 30. Rc3 {[%clk 0:01:56]}  Qd5 {[%clk 0:00:24]} 31. Qxb6 {[%clk 0:01:53]}  Rd6 {[%clk 0:00:21]} 32. Rc7+ {[%clk 0:01:50]}  Kh6 {[%clk 0:00:20]} 33. Qa7 {[%clk 0:01:49]}  R8d7 {[%clk 0:00:18]} 34. Qe3+ {[%clk 0:01:45]}  Kg7 {[%clk 0:00:15]} 35. Rxd7+ {[%clk 0:01:42]}  Rxd7 {[%clk 0:00:14]} 36. Rc1 {[%clk 0:01:35]}  Qd2 {[%clk 0:00:11]} 37. Qxd2 {[%clk 0:01:31]}  Rxd2 {[%clk 0:00:11]} 38. Rc7+ {[%clk 0:01:31]}  Kh6 {[%clk 0:00:10]} 39. b4 {[%clk 0:01:31]}  Rd4 {[%clk 0:00:09]} 40. Rb7 {[%clk 0:01:29]}  Rd1+ {[%clk 0:00:09]} 41. Kg2 {[%clk 0:01:28]}  Rd2 {[%clk 0:00:09]} 42. Kf1 {[%clk 0:01:27]}  Ra2 {[%clk 0:00:08]} 43. a5 {[%clk 0:01:26]}  e3 {[%clk 0:00:06]} 44. fxe3 {[%clk 0:01:25]}  Rxh2 {[%clk 0:00:06]} 45. a6 {[%clk 0:01:24]}  Ra2 {[%clk 0:00:05]} 46. a7 {[%clk 0:01:24]}  Kh5 {[%clk 0:00:05]} 47. Rxh7+ {[%clk 0:01:22]}  Kg4 {[%clk 0:00:04]} 48. b5 {[%clk 0:01:08]}  Kf3 {[%clk 0:00:04]} 49. Ke1 {[%clk 0:01:08]}  Kxe3 {[%clk 0:00:04]} 50. Kd1 {[%clk 0:01:08]}  Kd3 {[%clk 0:00:04]} 51. Kc1 {[%clk 0:01:08]}  Kc3 {[%clk 0:00:04]} 52. Kb1 {[%clk 0:01:08]}  Rg2 {[%clk 0:00:03]} 53. b6 {[%clk 0:01:05]}  Kb3 {[%clk 0:00:00]} 54. Kc1 {[%clk 0:01:04]} 1-0


[Site "https://www.chess.com"]

[Event "Titled Tuesday Blitz November 14 Late 2023"]
[White "Vargas, Mauricio"]
[Black "Quirke, Jeffrey"]
[WhiteFideId "4404572"]
[BlackFideId "2013029"]
[WhiteElo "1840"]
[BlackElo "2220"]
[Result "0-1"]
[Round "10"]
[TimeControl "180+1"]
[Date "2023.11.14"]
[WhiteClock "0:00:56"]
[BlackClock "0:00:12"]
[Board "99"]

1. e4 {[%clk 0:02:59]}  e6 {[%clk 0:03:00]} 2. f4 {[%clk 0:02:58]}  d5 {[%clk 0:02:59]} 3. e5 {[%clk 0:02:58]}  c5 {[%clk 0:02:58]} 4. Nf3 {[%clk 0:02:59]}  h5 {[%clk 0:02:52]} 5. Bb5+ {[%clk 0:02:58]}  Bd7 {[%clk 0:02:51]} 6. Bxd7+ {[%clk 0:02:58]}  Qxd7 {[%clk 0:02:51]} 7. O-O {[%clk 0:02:59]}  Nh6 {[%clk 0:02:51]} 8. d3 {[%clk 0:02:59]}  Nf5 {[%clk 0:02:51]} 9. Nbd2 {[%clk 0:02:57]}  Nc6 {[%clk 0:02:51]} 10. Qe1 {[%clk 0:02:57]}  Be7 {[%clk 0:02:51]} 11. c3 {[%clk 0:02:57]}  f6 {[%clk 0:02:29]} 12. exf6 {[%clk 0:02:56]}  gxf6 {[%clk 0:02:25]} 13. h3 {[%clk 0:02:56]}  O-O-O {[%clk 0:02:23]} 14. a3 {[%clk 0:02:52]}  Rdg8 {[%clk 0:02:20]} 15. Rf2 {[%clk 0:02:47]}  Bd6 {[%clk 0:02:14]} 16. Nf1 {[%clk 0:02:46]}  h4 {[%clk 0:02:11]} 17. b4 {[%clk 0:02:42]}  Rg7 {[%clk 0:02:00]} 18. bxc5 {[%clk 0:02:41]}  Bxc5 {[%clk 0:02:00]} 19. d4 {[%clk 0:02:41]}  Bd6 {[%clk 0:01:59]} 20. a4 {[%clk 0:02:41]}  Rhg8 {[%clk 0:01:58]} 21. Rb1 {[%clk 0:02:25]}  Rg6 {[%clk 0:01:56]} 22. Qe2 {[%clk 0:02:05]}  Bc7 {[%clk 0:01:27]} 23. Qb5 {[%clk 0:01:58]}  Bb6 {[%clk 0:01:15]} 24. Ba3 {[%clk 0:01:49]}  R6g7 {[%clk 0:01:10]} 25. Bc5 {[%clk 0:01:43]}  Bxc5 {[%clk 0:01:04]} 26. Qxc5 {[%clk 0:01:39]}  Nd6 {[%clk 0:01:02]} 27. a5 {[%clk 0:01:37]}  Ne4 {[%clk 0:01:02]} 28. Qb5 {[%clk 0:01:17]}  Nxf2 {[%clk 0:01:00]} 29. Kxf2 {[%clk 0:01:17]}  Rxg2+ {[%clk 0:01:00]} 30. Ke1 {[%clk 0:01:16]}  e5 {[%clk 0:00:41]} 31. fxe5 {[%clk 0:01:12]}  fxe5 {[%clk 0:00:41]} 32. Nxe5 {[%clk 0:01:06]}  Nxe5 {[%clk 0:00:38]} 33. dxe5 {[%clk 0:01:06]}  Qxb5 {[%clk 0:00:31]} 34. Rxb5 {[%clk 0:01:04]}  Rc2 {[%clk 0:00:17]} 35. Rxd5 {[%clk 0:01:03]}  Rxc3 {[%clk 0:00:17]} 36. Rd2 {[%clk 0:01:01]}  Rxh3 {[%clk 0:00:16]} 37. Re2 {[%clk 0:01:00]}  Re8 {[%clk 0:00:15]} 38. Nd2 {[%clk 0:00:57]}  Rh1+ {[%clk 0:00:13]} 39. Kf2 {[%clk 0:00:56]}  Rh2+ {[%clk 0:00:12]} 40. Kg1 {[%clk 0:00:54]}  Rxe2 {[%clk 0:00:12]} 41. Nf3 {[%clk 0:00:52]}  R8xe5 {[%clk 0:00:11]} 42. Nxe5 {[%clk 0:00:52]}  Rxe5 {[%clk 0:00:10]} 43. Kh2 {[%clk 0:00:53]}  Rxa5 {[%clk 0:00:11]} 44. Kh3 {[%clk 0:00:53]}  Rg5 {[%clk 0:00:11]} 45. Kxh4 {[%clk 0:00:53]}  Rg8 {[%clk 0:00:12]} 46. Kh5 {[%clk 0:00:53]}  Kd7 {[%clk 0:00:13]} 47. Kh6 {[%clk 0:00:53]}  Ke6 {[%clk 0:00:13]} 48. Kh7 {[%clk 0:00:54]}  Rg2 {[%clk 0:00:13]} 49. Kh6 {[%clk 0:00:55]}  Kf5 {[%clk 0:00:13]} 50. Kh5 {[%clk 0:00:56]}  Rh2# {[%clk 0:00:12]} 0-1


[Site "https://www.chess.com"]

[Event "Titled Tuesday Blitz November 14 Late 2023"]
[White "Bazeev, German"]
[Black "Makarian, Rudik"]
[WhiteFideId "24119350"]
[BlackFideId "44105681"]
[WhiteElo "2835"]
[BlackElo "2955"]
[Result "0-1"]
[Round "11"]
[TimeControl "180+1"]
[Date "2023.11.14"]
[WhiteClock "0:00:17"]
[BlackClock "0:00:28"]
[Board "7"]

1. c4 {[%clk 0:02:54]}  e6 {[%clk 0:01:51]} 2. Nf3 {[%clk 0:02:48]}  d5 {[%clk 0:01:52]} 3. g3 {[%clk 0:02:49]}  Nf6 {[%clk 0:01:53]} 4. Bg2 {[%clk 0:02:49]}  dxc4 {[%clk 0:01:53]} 5. Qa4+ {[%clk 0:02:45]}  c6 {[%clk 0:01:53]} 6. Qxc4 {[%clk 0:02:46]}  b5 {[%clk 0:01:54]} 7. Qc2 {[%clk 0:02:46]}  Bb7 {[%clk 0:01:55]} 8. O-O {[%clk 0:02:46]}  Nbd7 {[%clk 0:01:55]} 9. d3 {[%clk 0:02:46]}  a6 {[%clk 0:01:53]} 10. a4 {[%clk 0:02:44]}  Rc8 {[%clk 0:01:51]} 11. Nc3 {[%clk 0:02:43]}  Be7 {[%clk 0:01:51]} 12. b3 {[%clk 0:02:25]}  O-O {[%clk 0:01:50]} 13. Bb2 {[%clk 0:02:25]}  Qb6 {[%clk 0:01:51]} 14. h3 {[%clk 0:02:17]}  h6 {[%clk 0:01:50]} 15. e4 {[%clk 0:02:15]}  c5 {[%clk 0:01:42]} 16. Rfe1 {[%clk 0:01:59]}  Rfd8 {[%clk 0:01:41]} 17. Rad1 {[%clk 0:01:56]}  Nb8 {[%clk 0:01:41]} 18. Ne5 {[%clk 0:01:52]}  Nfd7 {[%clk 0:01:39]} 19. Ng4 {[%clk 0:01:21]}  Nc6 {[%clk 0:01:35]} 20. Ne2 {[%clk 0:01:20]}  Nd4 {[%clk 0:01:25]} 21. Qc1 {[%clk 0:01:13]}  Bg5 {[%clk 0:01:09]} 22. Qb1 {[%clk 0:01:07]}  h5 {[%clk 0:01:01]} 23. Ne3 {[%clk 0:01:00]}  Bf6 {[%clk 0:00:58]} 24. Nf4 {[%clk 0:00:56]}  g6 {[%clk 0:00:56]} 25. Kh2 {[%clk 0:00:42]}  Bg7 {[%clk 0:00:54]} 26. Ba1 {[%clk 0:00:40]}  Ne5 {[%clk 0:00:51]} 27. Rf1 {[%clk 0:00:39]}  Qa5 {[%clk 0:00:50]} 28. Rc1 {[%clk 0:00:30]}  Nef3+ {[%clk 0:00:39]} 29. Kh1 {[%clk 0:00:30]}  Nd2 {[%clk 0:00:38]} 30. Qa2 {[%clk 0:00:26]}  N2xb3 {[%clk 0:00:29]} 31. Bxd4 {[%clk 0:00:17]}  Nxc1 {[%clk 0:00:28]} 0-1


[Site "https://www.chess.com"]

[Event "Titled Tuesday Blitz November 14 Late 2023"]
[White "mind1mover"]
[Black "Andreikin, Dmitry"]
[BlackFideId "4158814"]
[WhiteElo "2804"]
[BlackElo "3107"]
[Result "0-1"]
[Round "11"]
[TimeControl "180+1"]
[Date "2023.11.14"]
[WhiteClock "0:00:01"]
[BlackClock "0:01:56"]
[Board "10"]

1. Nf3 {[%clk 0:03:00]}  b5 {[%clk 0:02:59]} 2. e4 {[%clk 0:02:59]}  Bb7 {[%clk 0:02:59]} 3. Bxb5 {[%clk 0:02:58]}  Bxe4 {[%clk 0:02:59]} 4. O-O {[%clk 0:02:58]}  c6 {[%clk 0:02:59]} 5. Be2 {[%clk 0:02:54]}  e6 {[%clk 0:02:59]} 6. c4 {[%clk 0:02:47]}  Nf6 {[%clk 0:02:57]} 7. Nc3 {[%clk 0:02:48]}  Bxf3 {[%clk 0:02:56]} 8. Bxf3 {[%clk 0:02:48]}  d5 {[%clk 0:02:56]} 9. Re1 {[%clk 0:02:40]}  Be7 {[%clk 0:02:56]} 10. b3 {[%clk 0:02:36]}  O-O {[%clk 0:02:55]} 11. Bb2 {[%clk 0:02:34]}  Nbd7 {[%clk 0:02:55]} 12. d4 {[%clk 0:02:34]}  a5 {[%clk 0:02:55]} 13. Qc2 {[%clk 0:02:30]}  Bd6 {[%clk 0:02:53]} 14. Rad1 {[%clk 0:02:15]}  h5 {[%clk 0:02:51]} 15. h3 {[%clk 0:02:15]}  Qb8 {[%clk 0:02:49]} 16. Na4 {[%clk 0:02:12]}  Rc8 {[%clk 0:02:48]} 17. Qe2 {[%clk 0:02:09]}  Bb4 {[%clk 0:02:47]} 18. Rf1 {[%clk 0:02:08]}  Bf8 {[%clk 0:02:48]} 19. Rc1 {[%clk 0:01:59]}  h4 {[%clk 0:02:46]} 20. Rc2 {[%clk 0:01:53]}  Qf4 {[%clk 0:02:45]} 21. Qe3 {[%clk 0:01:50]}  Qf5 {[%clk 0:02:39]} 22. Rfc1 {[%clk 0:01:50]}  Bd6 {[%clk 0:02:39]} 23. Qe2 {[%clk 0:01:31]}  Qf4 {[%clk 0:02:40]} 24. Kf1 {[%clk 0:01:25]}  Qh2 {[%clk 0:02:38]} 25. Ke1 {[%clk 0:01:21]}  Bf4 {[%clk 0:02:31]} 26. Rb1 {[%clk 0:01:14]}  e5 {[%clk 0:02:31]} 27. cxd5 {[%clk 0:00:51]}  cxd5 {[%clk 0:02:29]} 28. Rxc8+ {[%clk 0:00:40]}  Rxc8 {[%clk 0:02:30]} 29. dxe5 {[%clk 0:00:41]}  Bxe5 {[%clk 0:02:17]} 30. Nb6 {[%clk 0:00:17]}  Re8 {[%clk 0:01:56]} 31. Nxd7 {[%clk 0:00:17]}  Qg1+ {[%clk 0:01:56]} 32. Kd2 {[%clk 0:00:16]}  Qxb1 {[%clk 0:01:55]} 33. Nxf6+ {[%clk 0:00:01]}  gxf6 {[%clk 0:01:56]} 0-1


[Site "https://www.chess.com"]

[Event "Titled Tuesday Blitz November 14 Late 2023"]
[White "Hakobyan, Aram"]
[Black "Holt, Conrad"]
[WhiteFideId "13306677"]
[BlackFideId "2034387"]
[WhiteElo "3013"]
[BlackElo "2800"]
[Result "1-0"]
[Round "11"]
[TimeControl "180+1"]
[Date "2023.11.14"]
[WhiteClock "0:00:28"]
[BlackClock "0:00:02"]
[Board "11"]

1. c4 {[%clk 0:03:00]}  c6 {[%clk 0:02:59]} 2. Nf3 {[%clk 0:02:57]}  d5 {[%clk 0:02:59]} 3. e3 {[%clk 0:02:55]}  Nf6 {[%clk 0:02:56]} 4. Nc3 {[%clk 0:02:55]}  Nbd7 {[%clk 0:02:53]} 5. Qc2 {[%clk 0:02:52]}  e6 {[%clk 0:02:48]} 6. b3 {[%clk 0:02:52]}  Bd6 {[%clk 0:02:46]} 7. Bb2 {[%clk 0:02:50]}  a6 {[%clk 0:02:40]} 8. d4 {[%clk 0:02:43]}  b5 {[%clk 0:02:31]} 9. Be2 {[%clk 0:02:34]}  b4 {[%clk 0:02:30]} 10. Na4 {[%clk 0:02:34]}  Ne4 {[%clk 0:02:28]} 11. O-O {[%clk 0:02:34]}  O-O {[%clk 0:02:25]} 12. Nd2 {[%clk 0:02:27]}  Qc7 {[%clk 0:01:33]} 13. g3 {[%clk 0:02:23]}  Nxd2 {[%clk 0:01:27]} 14. Qxd2 {[%clk 0:02:22]}  dxc4 {[%clk 0:01:28]} 15. Bxc4 {[%clk 0:02:17]}  e5 {[%clk 0:01:16]} 16. Rac1 {[%clk 0:02:07]}  Nf6 {[%clk 0:01:03]} 17. dxe5 {[%clk 0:01:32]}  Bxe5 {[%clk 0:01:03]} 18. Qxb4 {[%clk 0:01:31]}  Bh3 {[%clk 0:00:54]} 19. Rfd1 {[%clk 0:01:28]}  Ne4 {[%clk 0:00:48]} 20. Be2 {[%clk 0:01:23]}  Nxg3 {[%clk 0:00:17]} 21. hxg3 {[%clk 0:01:17]}  Bxg3 {[%clk 0:00:18]} 22. Qe4 {[%clk 0:00:58]}  Bxf2+ {[%clk 0:00:11]} 23. Kxf2 {[%clk 0:00:59]}  Qh2+ {[%clk 0:00:10]} 24. Ke1 {[%clk 0:00:59]}  Rad8 {[%clk 0:00:09]} 25. Rxd8 {[%clk 0:00:50]}  Rxd8 {[%clk 0:00:08]} 26. Bd4 {[%clk 0:00:50]}  h5 {[%clk 0:00:03]} 27. Qe5 {[%clk 0:00:43]}  Qg2 {[%clk 0:00:02]} 28. Kd2 {[%clk 0:00:30]}  Bg4 {[%clk 0:00:02]} 29. Qxg7# {[%clk 0:00:28]} 1-0


[Site "https://www.chess.com"]

[Event "Titled Tuesday Blitz November 14 Late 2023"]
[White "Brodsky, David"]
[Black "Ibarra Jerez, Jose Carlos"]
[WhiteFideId "2073250"]
[BlackFideId "2226332"]
[WhiteElo "2792"]
[BlackElo "2945"]
[Result "0-1"]
[Round "11"]
[TimeControl "180+1"]
[Date "2023.11.14"]
[WhiteClock "0:02:18"]
[BlackClock "0:02:49"]
[Board "12"]

1. e4 {[%clk 0:03:00]}  c5 {[%clk 0:02:59]} 2. Nf3 {[%clk 0:03:01]}  e6 {[%clk 0:03:00]} 3. d4 {[%clk 0:03:01]}  cxd4 {[%clk 0:03:00]} 4. Nxd4 {[%clk 0:03:02]}  Bc5 {[%clk 0:03:01]} 5. Nc3 {[%clk 0:02:57]}  Qb6 {[%clk 0:03:01]} 6. Na4 {[%clk 0:02:56]}  Qa5+ {[%clk 0:03:01]} 7. c3 {[%clk 0:02:56]}  Bxd4 {[%clk 0:03:01]} 8. Qxd4 {[%clk 0:02:55]}  Nf6 {[%clk 0:03:01]} 9. b4 {[%clk 0:02:31]}  Qxa4 {[%clk 0:02:57]} 10. Bg5 {[%clk 0:02:23]}  Nc6 {[%clk 0:02:54]} 11. Qc5 {[%clk 0:02:18]}  Nxe4 {[%clk 0:02:49]} 0-1


[Site "https://www.chess.com"]

[Event "Titled Tuesday Blitz November 14 Late 2023"]
[White "Schnaider, Ilan"]
[Black "Yeletsky, Ivan"]
[WhiteFideId "169013"]
[BlackFideId "24180327"]
[WhiteElo "2727"]
[BlackElo "2891"]
[Result "1/2-1/2"]
[Round "11"]
[TimeControl "180+1"]
[Date "2023.11.14"]
[WhiteClock "0:00:04"]
[BlackClock "0:00:03"]
[Board "14"]

1. e4 {[%clk 0:03:00]}  c5 {[%clk 0:02:59]} 2. Nf3 {[%clk 0:03:01]}  e6 {[%clk 0:02:59]} 3. d4 {[%clk 0:03:01]}  cxd4 {[%clk 0:03:00]} 4. Nxd4 {[%clk 0:03:01]}  Nc6 {[%clk 0:03:01]} 5. Bf4 {[%clk 0:03:01]}  d6 {[%clk 0:03:00]} 6. Nxc6 {[%clk 0:02:59]}  bxc6 {[%clk 0:03:01]} 7. Bd3 {[%clk 0:03:00]}  e5 {[%clk 0:02:53]} 8. Be3 {[%clk 0:03:00]}  Nf6 {[%clk 0:02:53]} 9. O-O {[%clk 0:03:00]}  Ng4 {[%clk 0:02:49]} 10. Bd2 {[%clk 0:02:59]}  Be7 {[%clk 0:02:42]} 11. c4 {[%clk 0:02:58]}  O-O {[%clk 0:02:38]} 12. h3 {[%clk 0:02:58]}  Nf6 {[%clk 0:02:37]} 13. Nc3 {[%clk 0:02:59]}  a5 {[%clk 0:02:26]} 14. Qe2 {[%clk 0:02:55]}  Be6 {[%clk 0:02:22]} 15. Na4 {[%clk 0:02:55]}  Re8 {[%clk 0:02:07]} 16. Be3 {[%clk 0:02:52]}  g6 {[%clk 0:02:03]} 17. Rad1 {[%clk 0:02:51]}  Nh5 {[%clk 0:02:01]} 18. Bc2 {[%clk 0:02:47]}  Bg5 {[%clk 0:01:47]} 19. Bc5 {[%clk 0:02:46]}  Nf4 {[%clk 0:01:41]} 20. Qf3 {[%clk 0:02:45]}  Bxc4 {[%clk 0:01:20]} 21. Rxd6 {[%clk 0:02:33]}  Qc7 {[%clk 0:01:20]} 22. Re1 {[%clk 0:02:33]}  Be7 {[%clk 0:01:17]} 23. Rd2 {[%clk 0:02:32]}  Bb5 {[%clk 0:01:05]} 24. Bxe7 {[%clk 0:02:28]}  Qxe7 {[%clk 0:01:06]} 25. Nc3 {[%clk 0:02:27]}  Bc4 {[%clk 0:00:50]} 26. Red1 {[%clk 0:02:22]}  Rab8 {[%clk 0:00:44]} 27. Ba4 {[%clk 0:02:15]}  Rec8 {[%clk 0:00:37]} 28. Rd7 {[%clk 0:02:10]}  Qg5 {[%clk 0:00:35]} 29. Qg3 {[%clk 0:01:58]}  Qf6 {[%clk 0:00:35]} 30. R7d6 {[%clk 0:01:51]}  Be6 {[%clk 0:00:33]} 31. Bb3 {[%clk 0:01:49]}  Kg7 {[%clk 0:00:28]} 32. Bxe6 {[%clk 0:01:44]}  Nxe6 {[%clk 0:00:29]} 33. b3 {[%clk 0:01:44]}  Rb4 {[%clk 0:00:27]} 34. Nd5 {[%clk 0:01:35]}  cxd5 {[%clk 0:00:22]} 35. exd5 {[%clk 0:01:36]}  Rd4 {[%clk 0:00:14]} 36. Rxd4 {[%clk 0:01:20]}  Nxd4 {[%clk 0:00:15]} 37. Rxf6 {[%clk 0:00:35]}  Ne2+ {[%clk 0:00:15]} 38. Kh2 {[%clk 0:00:35]}  Nxg3 {[%clk 0:00:15]} 39. Ra6 {[%clk 0:00:09]}  Nf1+ {[%clk 0:00:15]} 40. Kg1 {[%clk 0:00:09]}  Rc1 {[%clk 0:00:16]} 41. Rxa5 {[%clk 0:00:10]}  Rd1 {[%clk 0:00:14]} 42. d6 {[%clk 0:00:04]}  Ng3+ {[%clk 0:00:10]} 43. Kh2 {[%clk 0:00:04]}  Nf1+ {[%clk 0:00:11]} 44. Kg1 {[%clk 0:00:04]}  Kf6 {[%clk 0:00:11]} 45. d7 {[%clk 0:00:04]}  Ne3+ {[%clk 0:00:09]} 46. Kh2 {[%clk 0:00:04]}  Nf5 {[%clk 0:00:09]} 47. g4 {[%clk 0:00:02]}  Ne7 {[%clk 0:00:06]} 48. Ra6+ {[%clk 0:00:03]}  Kg7 {[%clk 0:00:06]} 49. Ra7 {[%clk 0:00:03]}  Nc6 {[%clk 0:00:06]} 50. Rc7 {[%clk 0:00:04]}  Nd8 {[%clk 0:00:06]} 51. a4 {[%clk 0:00:03]}  Rd2 {[%clk 0:00:06]} 52. Kg2 {[%clk 0:00:03]}  e4 {[%clk 0:00:06]} 53. Kf1 {[%clk 0:00:02]}  Kf6 {[%clk 0:00:04]} 54. a5 {[%clk 0:00:02]}  Ra2 {[%clk 0:00:04]} 55. Rc8 {[%clk 0:00:02]}  Ke7 {[%clk 0:00:05]} 56. b4 {[%clk 0:00:02]}  Kxd7 {[%clk 0:00:05]} 57. Rb8 {[%clk 0:00:02]}  Nc6 {[%clk 0:00:04]} 58. Rb7+ {[%clk 0:00:02]}  Ke6 {[%clk 0:00:05]} 59. Rb6 {[%clk 0:00:02]}  Kd5 {[%clk 0:00:05]} 60. a6 {[%clk 0:00:03]}  Nxb4 {[%clk 0:00:02]} 61. Rxb4 {[%clk 0:00:03]}  Rxa6 {[%clk 0:00:03]} 62. Ke2 {[%clk 0:00:03]}  Ra2+ {[%clk 0:00:02]} 63. Kf1 {[%clk 0:00:02]}  Ra3 {[%clk 0:00:03]} 64. Kg2 {[%clk 0:00:02]}  Ra7 {[%clk 0:00:03]} 65. Kg3 {[%clk 0:00:03]}  Re7 {[%clk 0:00:02]} 66. Ra4 {[%clk 0:00:03]}  Ke5 {[%clk 0:00:02]} 67. Rb4 {[%clk 0:00:02]}  f5 {[%clk 0:00:02]} 68. Rb5+ {[%clk 0:00:03]}  Kf6 {[%clk 0:00:02]} 69. Kf4 {[%clk 0:00:03]}  fxg4 {[%clk 0:00:02]} 70. hxg4 {[%clk 0:00:04]}  h6 {[%clk 0:00:03]} 71. Rb6+ {[%clk 0:00:03]}  Kf7 {[%clk 0:00:03]} 72. g5 {[%clk 0:00:02]}  hxg5+ {[%clk 0:00:02]} 73. Kxg5 {[%clk 0:00:03]}  Re5+ {[%clk 0:00:02]} 74. Kf4 {[%clk 0:00:03]}  Rf5+ {[%clk 0:00:03]} 75. Ke3 {[%clk 0:00:03]}  Rf3+ {[%clk 0:00:03]} 76. Ke2 {[%clk 0:00:03]}  g5 {[%clk 0:00:03]} 77. Rb4 {[%clk 0:00:03]}  Rf4 {[%clk 0:00:03]} 78. Ke3 {[%clk 0:00:04]}  Rf3+ {[%clk 0:00:02]} 79. Ke2 {[%clk 0:00:03]}  Rf4 {[%clk 0:00:02]} 80. Ke3 {[%clk 0:00:03]}  Rf3+ {[%clk 0:00:03]} 81. Ke2 {[%clk 0:00:04]} 1/2-1/2


[Site "https://www.chess.com"]

[Event "Titled Tuesday Blitz November 14 Late 2023"]
[White "Mikaelyan, Arman"]
[Black "Jovic, Stanoje"]
[WhiteFideId "13304852"]
[BlackFideId "905020"]
[WhiteElo "2831"]
[BlackElo "2569"]
[Result "1-0"]
[Round "11"]
[TimeControl "180+1"]
[Date "2023.11.14"]
[WhiteClock "0:01:32"]
[BlackClock "0:00:00"]
[Board "17"]

1. e4 {[%clk 0:03:00]}  c6 {[%clk 0:02:59]} 2. d4 {[%clk 0:02:57]}  d5 {[%clk 0:02:59]} 3. exd5 {[%clk 0:02:58]}  cxd5 {[%clk 0:02:59]} 4. Bd3 {[%clk 0:02:59]}  Nc6 {[%clk 0:02:58]} 5. c3 {[%clk 0:02:59]}  g6 {[%clk 0:02:58]} 6. Bf4 {[%clk 0:03:00]}  Nh6 {[%clk 0:02:58]} 7. Nd2 {[%clk 0:03:00]}  f6 {[%clk 0:02:58]} 8. Ne2 {[%clk 0:02:59]}  Nf7 {[%clk 0:02:58]} 9. O-O {[%clk 0:02:59]}  Bg7 {[%clk 0:02:58]} 10. Bg3 {[%clk 0:02:59]}  O-O {[%clk 0:02:58]} 11. f4 {[%clk 0:02:59]}  Bf5 {[%clk 0:02:47]} 12. Bxf5 {[%clk 0:02:59]}  gxf5 {[%clk 0:02:47]} 13. Nf3 {[%clk 0:02:58]}  Nd6 {[%clk 0:02:43]} 14. Nc1 {[%clk 0:02:56]}  Ne4 {[%clk 0:02:41]} 15. Nd3 {[%clk 0:02:56]}  a5 {[%clk 0:02:36]} 16. Nc5 {[%clk 0:02:53]}  Qc8 {[%clk 0:02:31]} 17. Nh4 {[%clk 0:02:48]}  b6 {[%clk 0:02:26]} 18. Nxe4 {[%clk 0:02:47]}  dxe4 {[%clk 0:02:26]} 19. Qb3+ {[%clk 0:02:47]}  Kh8 {[%clk 0:02:12]} 20. d5 {[%clk 0:02:48]}  Nd8 {[%clk 0:02:07]} 21. Qxb6 {[%clk 0:02:48]}  Rb8 {[%clk 0:01:57]} 22. Qf2 {[%clk 0:02:48]}  Nf7 {[%clk 0:01:52]} 23. Rfc1 {[%clk 0:02:38]}  Nd6 {[%clk 0:01:50]} 24. c4 {[%clk 0:02:35]}  a4 {[%clk 0:01:47]} 25. c5 {[%clk 0:02:35]}  Nf7 {[%clk 0:01:44]} 26. Qd4 {[%clk 0:02:31]}  Rd8 {[%clk 0:01:36]} 27. d6 {[%clk 0:02:25]}  exd6 {[%clk 0:01:28]} 28. c6 {[%clk 0:02:25]}  Rb5 {[%clk 0:01:12]} 29. Rc4 {[%clk 0:02:22]}  Qc7 {[%clk 0:01:00]} 30. Rac1 {[%clk 0:02:17]}  d5 {[%clk 0:00:58]} 31. Rxa4 {[%clk 0:02:17]}  Rb6 {[%clk 0:00:50]} 32. Nxf5 {[%clk 0:02:03]}  Rxc6 {[%clk 0:00:49]} 33. Rxc6 {[%clk 0:02:03]}  Qxc6 {[%clk 0:00:50]} 34. h3 {[%clk 0:02:01]}  Nd6 {[%clk 0:00:44]} 35. Nxd6 {[%clk 0:02:00]}  Qxd6 {[%clk 0:00:40]} 36. Ra7 {[%clk 0:02:00]}  Rd7 {[%clk 0:00:38]} 37. f5 {[%clk 0:01:52]}  Qe7 {[%clk 0:00:24]} 38. Ra8+ {[%clk 0:01:50]}  Bf8 {[%clk 0:00:19]} 39. Bh4 {[%clk 0:01:48]}  Rd6 {[%clk 0:00:17]} 40. Ra7 {[%clk 0:01:42]}  Qe5 {[%clk 0:00:12]} 41. Qxe5 {[%clk 0:01:33]}  fxe5 {[%clk 0:00:13]} 42. Bg3 {[%clk 0:01:33]}  Bg7 {[%clk 0:00:00]} 43. Ra8+ {[%clk 0:01:32]} 1-0


[Site "https://www.chess.com"]